Workbook

Sheet Blad1
B1: Comparatieve kostenverschillen | N1: www.jdjong.nl
B2: Vul de gele vakjes in met zelfverzonnen getallen. Probeer bij het aantal uren na arbeidsdeling lager en bij het aantal producten na arbeidsdeling hoger uit te
B3: komen dan bij het aantal uren en producten vóór arbeidsdeling. Getallen die niet kunnen of fout zijn worden in rood weergegeven.
B5: Aantal uren per eenheid product | F5: Ruilverhouding | M5: Nieuwe ruilverhouding
B6: Kolom1 | C6: Kolom2 | D6: Kolom3
C7: Product X | D7: Product Y | M7: =$J$35/$K$36 -> 3
B8: Land A | C8: 25 | D8: 50 | F8: 1 | G8: : | H8: =$D$8/$C$8 -> 2 | I8: =IF(AND(D8<D9,C9<C8),"Land A heeft een absoluut voordeel met product Y en land B met product X","") ->  | M8: =$J$36/$K$35 -> 2.2
B9: Land B | C9: 10 | D9: 40 | F9: 1 | G9: : | H9: =$D$9/$C$9 -> 4 | I9: =IF(AND(D9<D8,C9>C8),"Land A heeft een absoluut voordeel met product X en Land B met product Y","") -> 
B11: =IF(AND(H8<H9,D8<D9,C8<=C9),"Land A heeft voor (een van) beide producten een absoluut voordeel, maar land A heeft een comparatief voordeel met product Y en land B met product X","") -> 
B12: =IF(AND(H8>H9,D8<=D9,C8<C9),"Land A heeft voor (een van) beide producten een absoluut voordeel, maar land A heeft een comparatief voordeel met product X en land B met product Y","") -> 
B13: =IF(AND(H8>H9,C8>=C9,D8>D9),"Land B heeft voor (een van) beide producten een absoluut voordeel, maar land B heeft een comparatief voordeel met product Y en land A met product X","") -> 
B14: =IF(AND(H8<H9,C8>C9,D8>=D9),"Land B heeft voor (een van) beide producten een absoluut voordeel, maar land B heeft een comparatief voordeel met product X en land A met product Y","") -> Land B heeft voor (een van) beide producten een absoluut voordeel, maar land B heeft een comparatief voordeel met product X en land A met product Y
B16: Aantal uren per land vóór arbeidsdeling | I16: Aantal producten vóór arbeidsdeling
B17: Kolom1 | C17: Kolom2 | D17: Kolom3 | E17: Kolom4 | I17: Kolom1 | J17: Kolom2 | K17: Kolom3 | L17: Kolom4
C18: Land A | D18: Land B | E18: Totaal | J18: Product X | K18: Product Y | L18: Totaal
B19: Aantal beschikbare uren voor product X | C19: 1000000 | D19: 500000 | I19: Land A | J19: =ROUNDDOWN($C$19/$C$8,0) -> 40000 | K19: =ROUNDDOWN($C$20/$D$8,0) -> 20000
B20: Aantal beschikbare uren voor product Y | C20: 1000000 | D20: 500000 | I20: Land B | J20: =ROUNDDOWN($D$19/$C$9,0) -> 50000 | K20: =ROUNDDOWN($D$20/$D$9,0) -> 12500
B21: Aantal beschikbare uren per land | C21: =C19+C20 -> 2000000 | D21: =D19+D20 -> 1000000 | E21: =SUM(C21:D21) -> 3000000 | I21: Totaal | J21: =SUM(J19:J20) -> 90000 | K21: =SUM(K19:K20) -> 32500 | L21: =SUM(J21:K21) -> 122500
B24: Aantal uren na arbeidsdeling bij dezelfde productie vóór arbeidsdeling | I24: Aantal producten na arbeidsdeling bij hetzelfde aantal uren vóór arbeidsdeling | Q24: Aantal producten na arbeidsdeling bij hetzelfde aantal uren vóór arbeidsdeling
B25: Kolom1 | C25: Kolom2 | D25: Kolom3 | E25: Kolom4 | I25: Kolom1 | J25: Kolom2 | K25: Kolom3 | L25: Kolom4 | Q25: Kolom1 | R25: Kolom2 | S25: Kolom3 | T25: Kolom4
C26: Land A | D26: Land B | E26: Totaal | J26: Product X | K26: Product Y | L26: Totaal | R26: Product X | S26: Product Y | T26: Totaal
B27: Product X | C27: =IF($H$8>$H$9,$J$21*$C$8,0) -> 0 | D27: =IF($H$8<$H$9,$J$21*$C$9,0) -> 900000 | I27: Land A | J27: =ROUNDDOWN(R27,0) -> 0 | K27: =ROUNDDOWN(S27,0) -> 40000 | Q27: Land A | R27: =IF($H$8>$H$9,$C$21/$C$8,0) -> 0 | S27: =IF($H$8<$H$9,$C$21/$D$8,0)+ROUNDDOWN(,0) -> 40000
B28: Product Y | C28: =IF($H$8<$H$9,$K$21*$D$8,0) -> 1625000 | D28: =IF($H$8>$H$9,$K$21*$D$9,0) -> 0 | I28: Land B | J28: =ROUNDDOWN(R28,0) -> 100000 | K28: =ROUNDDOWN(S28,0) -> 0 | Q28: Land B | R28: =IF($H$8<$H$9,$D$21/$C$9,0)+ROUNDDOWN(,0) -> 100000 | S28: =IF($H$8>$H$9,$D$21/$D$9,0)+ROUNDDOWN(,0) -> 0
B29: Per land | C29: =SUBTOTAL(109,C26:C28) -> 1625000 | D29: =SUBTOTAL(109,D26:D28) -> 900000 | E29: =SUM(C29:D29) -> 2525000 | I29: Totaal | J29: =SUBTOTAL(109,J26:J28) -> 100000 | K29: =SUBTOTAL(109,K26:K28) -> 40000 | L29: =J29+K29 -> 140000 | Q29: Totaal | R29: =SUBTOTAL(109,R26:R28) -> 100000 | S29: =SUBTOTAL(109,S26:S28) -> 40000 | T29: =R29+S29 -> 140000
E30: =IF(AND(E29<E21,E29>0),"Minder uren!","") -> Minder uren! | L30: =IF(L29>L21,"Meer producten!","Geen (comparatief) voordeel!") -> Meer producten!
B32: Vul in de tabel hiernaast getallen in na arbeidsdeling en na de ruil tussen land A en B. | I32: Aantal producten na arbeidsdeling en na de ruil tussen de twee landen
I33: Kolom1 | J33: Kolom2 | K33: Kolom3 | L33: Kolom4
B34: Vergelijk de ingevulde getallen met de situatie vóór arbeidsdeling. | J34: Product X | K34: Product Y | L34: Totaal
B35: Beide landen moeten erop vooruit gaan. | I35: Land A | J35: 45000 | K35: 25000
B36: In de cel hieronder komt te staan of je een goede ruilverhouding | I36: Land B | J36: 55000 | K36: 15000
B37: =IF(AND($M$7>$H$8,$M$7<$H$9),"Goede ruilverhouding!","") -> Goede ruilverhouding! | D37: hebt gekozen. | I37: Totaal | J37: =SUBTOTAL(109,J34:J36) -> 100000 | K37: =SUBTOTAL(109,K34:K36) -> 40000 | L37: =J37+K37 -> 140000
B38: =IF(AND($H$9<$M$8,$H$8>$M$8),"Goede ruilverhouding!","") ->  | I38: Aantal producten zijn naar beneden afgerond!

Sheet Blad2

Sheet Blad3
